Cogmind - Beta 16 @@@ ROGUE MODE // 2025.11.06 @ 01:23:24 Player: souux Result: Destroyed by QJ-2NT(R) with Subdweller Shrapnel Launcher Performance ------------- Evolutions (0) 0 Regions Visited (2) 400 Robots Destroyed (32) 160 Value Destroyed (761) 761 Prototype IDs (5) 100 Alien Tech Used (0) 0 Bonus (0) 0 TOTAL SCORE: 1421 Bonus ------- None Cogmind --------- Core Integrity 0/250 Matter 116/300 Energy 200/200 System Corruption 2% Temperature Cool (0) Movement Rolling (120) Ox1 Location -10/Subcaves Parts ------- > --- POWER (1) -------- Subdweller Power Source > --- PROPULSION (2) --- Subdweller Monowheel Subdweller Monowheel > --- UTILITY (2) ------ Improved Heat Sink High-capacity Storage Unit > --- WEAPON (2) ------- Battle Rifle Barrage Gun > --- INVENTORY (20) --- Light Ion Engine Improved Ion Engine Improved Ion Engine Subdweller Power Source Aluminum Leg Aluminum Leg Aluminum Leg Aluminum Leg Large Storage Unit Large Matter Pod (150) Structural Scanner Seismic Detector Scrap Shield Medium Laser Improved Light Cannon Improved Light Cannon Peak State ------------ > --- POWER ------------ Subdweller Power Source > --- PROPULSION ------- Subdweller Monowheel Subdweller Monowheel > --- UTILITY ---------- Improved Heat Sink High-capacity Storage Unit > --- WEAPON ----------- Barrage Gun Improved Light Cannon > --- INVENTORY -------- Light Ion Engine Improved Ion Engine Improved Ion Engine Subdweller Power Source Aluminum Leg Aluminum Leg Aluminum Leg Aluminum Leg Large Storage Unit Large Matter Pod Structural Scanner Seismic Detector Scrap Shield Medium Laser Improved Light Cannon [Rating: 17] Favorites ----------- Power Improved Ion Engine Engine Improved Ion Engine Propulsion Wheel Treads Light Treads Leg Aluminum Leg Wheel Wheel Utility Seismic Detector Device Seismic Detector Storage High-capacity Storage Unit Weapon Improved Light Cannon Energy Gun Medium Laser Ballistic Gun Light Assault Rifle Ballistic Cannon Improved Light Cannon Build | -11 -10 -10 ------- Run | Yrd Mat Sub Slots Evolved . | . . . Power . | . . . Propulsion . | . . . Utility . | . . . Weapon . | . . . Parts Attached 36 | 7 19 10 Power 6 | 1 2 3 Engine 6 | 1 2 3 Core . | . . . Reactor . | . . . Propulsion 14 | 2 8 4 Treads 2 | 2 . . Leg 6 | . 5 1 Wheel 6 | . 3 3 Hover . | . . . Flight . | . . . Utility 7 | 2 5 . Device 3 | 1 2 . Storage 4 | 1 3 . Processor . | . . . Hackware . | . . . Protection . | . . . Artifact . | . . . Weapon 9 | 2 4 3 Energy Gun 2 | 1 1 . Energy Cannon . | . . . Ballistic Gun 3 | 1 . 2 Ballistic Cannon 4 | . 3 1 Launcher . | . . . Special Weapon . | . . . Impact Weapon . | . . . Slashing Weapon . | . . . Piercing Weapon . | . . . Special Melee Weapon . | . . . Unidentified Prototypes . | . . . Corrupted Parts 1 | . 1 . System Corruption 2 | . 2 . Parts Lost 11 | . 4 7 Power 2 | . 1 1 Propulsion 5 | . 2 3 Utility 1 | . . 1 Weapon 3 | . 1 2 Highest Loss Streak 5 | . 2 5 To Critical Strikes . | . . . Average Backups 11 | 5 9 16 Power 1 | . . 2 Propulsion 3 | 3 3 5 Utility 3 | . 3 5 Weapon 2 | . 2 3 Tool/Special . | . . . Unused Backups 14 | . 6 8 Power 4 | . 1 3 Propulsion 3 | . 2 1 Utility 5 | . 1 4 Weapon 2 | . 2 . Tool/Special . | . . . Average Slot Usage (%) 98 | . 98 99 Engine 13 | . 13 13 Treads 5 | . 8 . Leg 9 | . 13 1 Wheel 12 | . 5 26 Device 13 | . 13 14 Storage 14 | . 14 14 Energy Gun 10 | . 15 . Ballistic Cannon 16 | . 10 26 Peak Build Rating 17 | 7 12 17 Average Rating 9 | 6 9 11 On Entrance 6 | . 7 12 Avg Prop Armor Cover (%) 7 | . 7 8 Naked Turns . | . . . Heaviest Build 56 | 14 56 56 Greatest Support 40 | 40 40 40 Greatest Overweight (x) 13 | . 13 2 Average Overweight (x) 1 | . . 1 Largest Inventory Capacity 20 | 8 20 20 Average Capacity 13 | 7 11 20 Most Carried 20 | 7 18 20 Average Carried 11 | 5 9 17 Final Capacity 20 | 8 20 20 Final Carried 17 | 7 17 17 Class Distribution -------------------- 100% | Mutant Dominant Class ---------------- Mutant | -10/Materials Mutant | -10/Subcaves Resources | -11 -10 -10 ----------- Run | Yrd Mat Sub Matter Collected 1030 | 274 583 173 Remotely . | . . . Salvage Created 1001 | 228 686 87 Parts 61 | 16 32 13 Haulers Intercepted 2 | . 2 . Recyclers Shooed . | . . . Parts Field Recycled . | . . . Retrieved Matter . | . . . Parts Self-Destructed 13 | . . 13 Prevented . | . . . Parts Restored . | . . . Kills | -11 -10 -10 ------- Run | Yrd Mat Sub Combat Hostiles Destroyed 19 | . 13 6 Guns 5 | . 4 1 Cannons 13 | . 8 5 AOE 1 | . 1 . Classes Destroyed 7 | 2 3 2 Tunneler 7 | 6 1 . Hauler 2 | . 2 . Recycler 2 | 1 1 . Watcher 2 | . 2 . Swarmer 3 | . . 3 Grunt 13 | . 13 . Subdweller 3 | . . 3 Best Kill Streak 3 | 3 3 3 Combat Bots Only 3 | . 3 3 Max Kills in Single Turn 1 | 1 1 1 Gunslinging . | . . . Exploded 1 | . 1 . Melee . | . . . Uniques/NPCs Destroyed . | . . . Combat | -11 -10 -10 -------- Run | Yrd Mat Sub Hostile Shots Fired 117 | . 72 45 Missed 39 | . 23 16 Hits 78 | . 49 29 Projectile 78 | . 49 29 AOE 2 | . . 2 Critical Strikes 2 | . 2 . Damage Taken 1539 | . 792 747 Core 256 | . 107 149 Absorbed by Shields . | . . . Core Remaining (%) 100 | 100 . . Volleys Fired 129 | 22 78 29 Largest 2 | 2 2 2 Hottest 90 | 70 90 66 Shots Fired 214 | 26 131 57 Gun 123 | 26 90 7 Cannon 91 | . 41 50 Launcher . | . . . Special . | . . . Kinetic 102 | 4 41 57 Thermal 93 | 22 71 . Explosive . | . . . Electromagnetic 19 | . 19 . Robot Hit Streak 9 | 9 9 7 Robot Miss Streak 7 | 2 7 3 Penetration Max . | . . . Secondary Targets . | . . . Shots Hit Robots 117 | 18 67 32 Core Hits 47 | 8 30 9 Critical Kills . | . . . Critical Parts Destroyed . | . . . Critical Strikes 7 | 1 4 2 Burn 4 | 1 3 . Blast 3 | . 1 2 Melee Attacks . | . . . Impact . | . . . Slashing . | . . . Piercing . | . . . Sneak Attacks . | . . . Combat Hostiles . | . . . Follow-up Attacks . | . . . Damage Inflicted 2121 | 229 1228 664 Guns 983 | 229 658 96 Cannons 984 | . 416 568 Explosions 149 | . 149 . Melee . | . . . Ramming 5 | . 5 . Kinetic 1094 | 14 416 664 Thermal 780 | 215 565 . Explosive 118 | . 118 . Electromagnetic 124 | . 124 . Impact . | . . . Slashing . | . . . Piercing . | . . . Highest Corruption 2 | . 2 2 Average Corruption 2 | . 2 2 Corruption Purged . | . . . Corruption Blocked . | . . . Effects 29 | . 15 14 Message Errors 9 | . 5 4 Matter Fused 5 | . 2 3 Heat Flow Errors 3 | . 3 . Energy Discharges 4 | . 2 2 Parts Rejected 1 | . . 1 Parts Fused 1 | . . 1 Data Loss (minor) 3 | . 1 2 Data Loss (major) 2 | . 2 . Misfires 1 | . . 1 Overload Shots . | . . . Overflow Damage 11 | . 9 2 Projectiles 2 | . . 2 Explosions 9 | . 9 . Melee . | . . . Knockbacks 12 | . 6 6 Impact . | . . . Kinetic 11 | . 5 6 Secondary 1 | . 1 . Self-Inflicted Damage 149 | . 149 . Shots 2 | . 2 . Rammed 1 | . 1 . Targets Rammed 1 | . 1 . Kicked . | . . . Crushed . | . . . Highest Temperature 386 | 70 386 . Average Temperature 83 | 28 93 . Received Heat Transfer 474 | . 402 72 Effects 2 | . 2 . Shutdowns 1 | . 1 . Energy Bleed 1 | . 1 . Siege Activations . | . . . Martial Activations . | . . . Shielding Activations . | . . . Robots Disrupted . | . . . Combat Hostiles . | . . . Robots Corrupted . | . . . Combat Hostiles . | . . . Parts Fried . | . . . Impact Corruptions . | . . . Robots Melted 1 | . 1 . Combat Hostiles . | . . . Parts Melted 4 | 1 3 . Heat Transferred 2566 | 703 1863 . Parts Sabotaged . | . . . Parts Stolen . | . . . Parts Stripped . | . . . Power Chain Reactions 1 | . 1 . Alert | -11 -10 -10 ------- Run | Yrd Mat Sub Maximum Alert Level . | . . . Low Security (%) 100 | 100 100 . Level 1 . | . . . Level 2 . | . . . Level 3 . | . . . Level 4 . | . . . Level 5 . | . . . High Security . | . . . Max Security . | . . . Peak Influence 118 | 10 118 . Initial . | . . . Average 30 | 1 35 . Influence Increases 552 | 35 447 70 Destroy 0b10 Robot/C 320 | . 260 60 Destroy 0b10 Robot/NC 65 | 35 30 . Destroy Leader 68 | . 58 10 Successful Hack 35 | . 35 . Disable Machine 30 | . 30 . Destroy Structure 34 | . 34 . Influence Decreases 552 | 35 403 114 Entered New Map 22 | . . 22 Time Decay 510 | 35 383 92 Lost Part 20 | . 20 . Squads Dispatched 1 | . 1 . Investigation 1 | . 1 . Extermination . | . . . Reinforcement . | . . . Assault . | . . . Garrison . | . . . Intercept . | . . . Searches Triggered . | . . . Construction Impeded . | . . . Haulers Reinforced . | . . . Active Scanning Responses . | . . . Cargo Convoy Interrupts . | . . . Stealth | -11 -10 -10 --------- Run | Yrd Mat Sub Distress Signals 1 | . 1 . Communications Jammed . | . . . Distress Signals . | . . . Times Spotted 29 | . 21 8 Peak Tracking Total 5 | . 5 3 Tactical Retreats . | . . . Traps | -11 -10 -10 ------- Run | Yrd Mat Sub Traps Triggered 9 | . 5 4 Indirectly . | . . . Trap Hack Attempts . | . . . Triggered . | . . . Disarmed . | . . . Reprogrammed . | . . . Reused . | . . . Traps Extracted . | . . . Installed . | . . . Triggered . | . . . Machines | -11 -10 -10 ---------- Run | Yrd Mat Sub Machines Disabled 2 | . 2 . Max in Single Turn 1 | . 1 . Machines Repaired . | . . . Machines Dismantled . | . . . Machines Sabotaged . | . . . Overloaded Fab Kills . | . . . Hacking | -11 -10 -10 --------- Run | Yrd Mat Sub Machines Accessed 10 | . 8 2 Terminals 8 | . 8 . Fabricators . | . . . Repair Stations . | . . . Recycling Units . | . . . Scanalyzers . | . . . Garrison Access . | . . . Total Hacks 28 | . 25 3 Successful 18 | . 15 3 Failed 10 | . 10 . Catastrophic 3 | . 3 . Database Lockouts . | . . . Manual 21 | . 21 . Terminals 25 | . 25 . Fabricators . | . . . Repair Stations . | . . . Recycling Units . | . . . Scanalyzers . | . . . Garrison Access . | . . . Terminal Hacks 6 | . 3 3 Record 2 | . 1 1 Prototype ID Bank 2 | . 2 . Open Door 1 | . . 1 Release Object 1 | . . 1 Fabricator Hacks . | . . . Repair Station Hacks . | . . . Recycling Unit Hacks . | . . . Scanalyzer . | . . . Garrison Access Hacks . | . . . Unauthorized Hacks 12 | . 12 . Terminals 12 | . 12 . Botnet 5 | . 5 . Operators 1 | . 1 . Skim 6 | . 6 . Fabricators . | . . . Repair Stations . | . . . Recycling Units . | . . . Scanalyzers . | . . . Garrison Access . | . . . Data Cores Recovered . | . . . Used . | . . . Hacking Detections 7 | . 7 . Full Trace Events . | . . . Feedback Events . | . . . Feedback Blocked . | . . . Robot Schematics Acquired . | . . . Robots Built . | . . . Authchips . | . . . Time . | . . . Total Robot Build Rating . | . . . Part Schematics Acquired . | . . . Parts Built . | . . . Authchips . | . . . Time . | . . . Total Part Build Rating . | . . . Part Studies Acquired . | . . . Parts Repaired . | . . . Time . | . . . Parts Recycled . | . . . Recycled Matter . | . . . Retrieved Matter . | . . . Retrieved Components . | . . . Parts Scanalyzed . | . . . Part Schematics Acquired . | . . . Parts Damaged . | . . . Bothacking | -11 -10 -10 ------------ Run | Yrd Mat Sub Used RIF Installer . | . . . Robots Hacked . | . . . Non-combat . | . . . Combat . | . . . Robot Hacks Applied . | . . . Relay Couplers Released . | . . . Fabnet Peak Effective % . | . . . Robots Rewired . | . . . Allies Hacked . | . . . Hacks Repelled . | . . . Allies | -11 -10 -10 -------- Run | Yrd Mat Sub Total Allies . | . . . Largest Group . | . . . Highest-Rated Group . | . . . Highest-Rated Ally . | . . . Total Orders . | . . . Ally Attacks . | . . . Total Damage . | . . . Kills . | . . . Allies Corrupted . | . . . Allies Melted . | . . . Intel | -11 -10 -10 ------- Run | Yrd Mat Sub Active Infowar (turns) 2429 | 131 1562 736 Seismic 2429 | 131 1562 736 Robot Analysis Total . | . . . Derelict Logs Recovered 1 | . . 1 Drone Launches . | . . . Drone Recoveries . | . . . Exploration | -11 -10 -10 ------------- Run | Yrd Mat Sub Turns Passed 2681 | 242 1613 826 Spaces Moved 1473 | 112 818 543 Core 10 | 5 5 . Treads 483 | 107 376 . Legs 206 | . 200 6 Wheels 774 | . 237 537 Hover . | . . . Flight . | . . . Fastest Speed 50 | 50 110 110 Average Speed 142 | 155 160 112 Slowest Speed 700 | 160 700 260 Overloaded Moves . | . . . Propulsion Burnouts . | . . . Robots Hopped . | . . . Potential Cave-ins . | . . . Cave-ins Triggered . | . . . Exploration Rate (%) 46 | 7 98 35 Regions Visited 2 Branch Regions 1 Pre-discovered Areas 1 | . . 1 Known Exits Taken 1 | . 1 . Unknown Exits Taken 1 | 1 . . Scrap Searched . | . . . Spaces Dug . | . . . Terrain Destroyed 36 | . 36 . Melee . | . . . Projectile 4 | . 4 . AOE 32 | . 32 . Terrain Rammed . | . . . Walls Destroyed . | . . . Machines Disabled . | . . . Actions | -11 -10 -10 --------- Run | Yrd Mat Sub Total 1844 | 154 992 698 Wait 127 | 2 24 101 Move 1471 | 111 817 543 Hop . | . . . Pick Up 51 | 12 30 9 Fast Attach 2 | 2 . . Attach 26 | 5 13 8 Detach . | . . . Swap 21 | . 16 5 Drop 15 | . 13 2 Fire 129 | 22 78 29 Melee . | . . . Ram . | . . . Kick . | . . . Crush 1 | . 1 . Escape Stasis . | . . . Rewire . | . . . Trap . | . . . Miscellaneous 1 | . . 1 Route ------- -11/Scrapyard -10/Materials (discovered 5 exits: *Mat x3 / *Min / *Sub) -10/Subcaves (discovered 3 exits: *Mat x2 / Rec) History --------- Turn | Location | Event 7 | -11/Scrapyard | Discovered new exit (range 16) 243 | -11/Scrapyard | Entered Materials 339 | -10/Materials | Build established: Mutant 417 | -10/Materials | Discovered new exit (range 3) 759 | -10/Materials | Discovered new exit (range 12) 1018 | -10/Materials | Discovered new exit (range 16) 1354 | -10/Materials | Discovered new exit (range 7) 1401 | -10/Materials | Learned 4 Subcaves zone layouts 1453 | -10/Materials | Identified exit to Materials 1493 | -10/Materials | Learned location of 2 exits from Subcaves 1551 | -10/Materials | Learned 2 Storage zone layouts 1552 | -10/Materials | Learned Storage stockpile data 1557 | -10/Materials | Learned 4 Subcaves zone layouts 1573 | -10/Materials | Identified exit to Mines 1573 | -10/Materials | Identified exit to Subcaves 1600 | -10/Materials | Learned location of 1 exit from Storage 1856 | -10/Materials | Entered Subcaves 1857 | -10/Subcaves | Approached by a straggling Scientist 1857 | -10/Subcaves | Identified exit to Materials 1857 | -10/Subcaves | Identified exit to Recycling 2017 | -10/Subcaves | Released subatomizers from SUBCON Basin 2121 | -10/Subcaves | Core integrity fell below 50% 2242 | -10/Subcaves | A swath of the cavern ceiling suddenly collapsed 2254 | -10/Subcaves | Shifting Twisted Machinery released Barrage Gun 2259 | -10/Subcaves | Shifting Twisted Machinery released Sub. Optics 2502 | -10/Subcaves | Shifting Twisted Machinery released Sub. Power Source 2505 | -10/Subcaves | Shifting Twisted Machinery released Sub. Power Source 2641 | -10/Subcaves | Lost 5 parts (2n1u2w) 2664 | -10/Subcaves | Discovered exit to Materials (range 5) 2681 | -10/Subcaves | Core integrity fell below 20% 2682 | -10/Subcaves | Destroyed by QJ-2NT(R) with Subdweller Shrapnel Launcher Last Messages --------------- 02596_ System corrupted: Wheel rejected. 02597_ OJ-ACY(R) destroyed. 02598_ Subatomizers dissect the Disposable Heat Sink. 02609_ Acquired 16 matter. 02610_ Imp. Light Cannon destroyed. 02614_ Acquired Sub. Monowheel. 02623_ Subatomizers dissect the Disposable Heat Sink, destroying it. 02623_ MB-OI0(R) destroyed. 02629_ Sub. Power Source shoots sparks and powers down. 02636_ Subatomizers dissect the Wheel. 02637_ Acquired 5 matter. 02642_ Acquired Sub. Power Source. 02644_ Dropped Broken Sub. Power Source. 02646_ Acquired Sub. Monowheel. 02649_ Acquired 52 matter. 02651_ Acquired Battle Rifle. 02664_ EXIT=FOUND: MATERIALS Map ----- +----------------------------------------------------+ | ?# ###??????????????????????????????????????? | | ?### % #??????????????????????????????????????? | | ???# % ##?????????????????????????????????????? | | ???# % #?????????????????????????????????????? | | ??## & #####?????????????????????????????????? | | ??# % #?????????????????????????????????? | | ??# #?????????????????????????????????? | | ?# % % #?????????????????????????????????? | | ## ## ##?????????????????????????????????? | | % ### ###??????????????????????????????????? | | #% #??###????????????????????????????????????? | | #% ##?????????????????????????????????????????? | | ## ##?????????????????????????????????????????? | | # ##????????????????????????????????????????? | | "##&* ##???????????????????????????????????????? | | "!& ! ##??????????????????????????????????????? | | """" & ###????????????????????????????????????? | | """""""""" #??????######????????????????????????? | | """ "##"" ###?????# #########?? ???????????? | | ###" #### ###??## # #;##" "???????????? | | ##?##"#??## #??# ## ;;; ;##??????????? | | #######??###" #### R ;#??????????? | | """"##???#"" < ;#???????????? | | """""#??#""" ## ;; ;# #?????????? | | """""###""" "### ## ;; " ??????????? | | ######" """ ?## # @ ????????? | | ##???# """"" ????????? | | #????# """ # ;;;; ????????? | | ?????##?#" ######## ;;; ;#### ## ?????????? | | ??????????????????####### ;#???????????????????? | | ????????????????????????######???????????????????? | | ?????????????????????????????????????????????????? | | ?????????????????????????????????????????????????? | | ?????????????????????????????????????????????????? | | ?????????????????????????????????????????????????? | | ?????????????????????????????????????????????????? | | ?????????????????????????????????????????????????? | | ?????????????????????????????????????????????????? | | ?????????????????????????????????????????????????? | | ?????????????????????????????????????????????????? | | ?????????????????????????????????????????????????? | | ?????????????????????????????????????????????????? | | ?????????????????????????????????????????????????? | | ?????????????????????????????????????????????????? | | ?????????????????????????????????????????????????? | | | | | | | | | | | +----------------------------------------------------+ Best States ------------- Heat Dissipation 39 Energy Generation 15 Energy Capacity 265 Matter Stores 300 Matter Capacity 300 Sight Range 16 Terrain Scan Density 10 Evasion (%) 40 Recoil Reduction 2 Item Schematics ----------------- None Robot Schematics ------------------ None Fabricated ------------ Nothing Repaired ---------- Nothing Studied --------- None Alien Tech Used ----------------- None Achievements -------------- None Challenges ------------ None Game ------ Seed RemoteFocalAnalyzer Manual? 0 Play Time 00:26:30 Cumulative 74.1 hours Start 2025.11.06 @ 00:59:49 End 2025.11.06 @ 01:23:24 Sessions 1 Manual Loads 0 Difficulty Rogue Special Mode None Game No. 65 Rogue 65 Adventurer 0 Explorer 0 Win Type - Total 0 Types 0/0/0/0/0/0/0/0/0/0 Lore% 26 Gallery% 39 Achievement% 29 Wizard Run 0 Options --------- Layout 2 ASCII 0 Keyboard 0 Movement Mouse Keybinds 0 Fullscreen 2 Font 24/Terminus Map View 50x44 Zoom Use 0% Tactical HUD 1 Map Filters NONE Filters NONE Steam 1 RUN: 1ba871df-5740-4741-9857-55ef13d3d840